[Event "EYCC Open-U12 2019"]
[Site "Bratislava"]
[Date "2019.08.02"]
[Round "1.8"]
[White "Cherneyko, Ivan"]
[Black "Fiszer, Bartosz"]
[Result "0-1"]
[ECO "E92"]
[WhiteElo "1743"]
[BlackElo "2124"]
[Annotator "NA"]
[PlyCount "69"]
[EventDate "2019.08.02"]
[EventType "swiss"]
[EventCountry "SVK"]
[SourceTitle "playchess.com"]
[Source "ChessBase"]
[SourceQuality "1"]
[TimeControl "40/5400+30:1800+30"]

1. d4 {[%emt 0:00:00]} Nf6 {[%emt 0:00:00]} 2. c4 {[%emt 0:00:00]} g6 {[%emt 0:00:00]} 3. Nc3 {[%emt 0:00:00]} Bg7 {[%emt 0:00:00]} 4. e4 {[%emt 0:00:00]} d6 {[%emt 0:00:14]} 5. Nf3 {[%emt 0:00:00]} O-O {[%emt 0:00:19]} 6. Be2 {[%emt 0:00:19]} e5 {[%emt 0:00:21]} 7. d5 {[%emt 0:01:26]} a5 {[%emt 0:01:14]} 8. Bg5 {[%emt 0:00:58]} h6 {[%emt 0:02:23]} 9. Be3 {[%emt 0:00:36]} Ng4 {[%emt 0:02:44]} 10. Bc1 {[%emt 0:00:27]} f5 {[%emt 0:05:27]} 11. exf5 {[%emt 0:00:34]} gxf5 {[%emt 0:00:53]} 12. g3 {[%emt 0:04:00]} Na6 {[%emt 0:07:10]} 13. Nh4 {[%emt 0:02:29]} Nf6 {[%emt 0:08:28]} 14. f4 {[%emt 0:24:41]} e4 {[%emt 0:11:04]} 15. O-O {[%emt 0:04:51]} c6 {[%emt 0:10:43]} 16. Be3 {[%emt 0:07:28]} cxd5 {[%emt 0:10:59]} 17. cxd5 {[%emt 0:17:36]} Bd7 {[%emt 0:02:36]} 18. Qb3 {[%emt 0:15:37]} Qb8 {[%emt 0:04:57]} 19. Rfd1 {[%emt 0:12:21]} Rc8 {[%emt 0:12:36]} 20. Bb5 {[%emt 0:02:26]} Ng4 {[%emt 0:03:29]} 21. Bb6 {[%emt 0:01:46]} Nc5 {[%emt 0:04:43]} 22. Bxc5 {[%emt 0:00:59]} Bxb5 {[%emt 0:00:01]} 23. Nxb5 {[%emt 0:00:37]} Rxc5 {[%emt 0:00:04]} 24. Nxf5 {[%emt 0:01:28]} Rxb5 {[%emt 0:00:11]} 25. Qxb5 {[%emt 0:01:08]} Qa7+ {[%emt 0:00:01]} 26. Kg2 {[%emt 0:00:35]} Qf2+ {[%emt 0:05:01]} 27. Kh3 {[%emt 0:00:04]} Qxh2+ {[%emt 0:04:08]} 28. Kxg4 {[%emt 0:00:05]} h5+ {[%emt 0:00:06]} 29. Kg5 {[%emt 0:00:10]} Qh3 {[%emt 0:00:03]} 30. Qe2 {[%emt 0:01:21]} Rf8 {[%emt 0:00:30]} 31. g4 {[%emt 0:00:31]} Kh7 {[%emt 0:01:26]} 32. Nxg7 {[%emt 0:00:27]} Kxg7 {[%emt 0:00:22]} 33. Rh1 {[%emt 0:00:27]} Qg3 {[%emt 0:00:49]} 34. Rxh5 {[%emt 0:00:22]} Rxf4 {[%emt 0:00:47]} 35. Rg1 {[%emt 0:00:50]} 0-1

[Event "EYCC Open-U12 2019"]
[Site "Bratislava"]
[Date "2019.08.02"]
[Round "1.9"]
[White "Piliposyan, Robert"]
[Black "Lup, Constantin-Ionel"]
[Result "1-0"]
[ECO "E94"]
[WhiteElo "2156"]
[BlackElo "1739"]
[Annotator "NA"]
[PlyCount "73"]
[EventDate "2019.08.02"]
[EventType "swiss"]
[EventCountry "SVK"]
[SourceTitle "playchess.com"]
[Source "ChessBase"]
[SourceQuality "1"]
[TimeControl "40/5400+30:1800+30"]

1. d4 {[%emt 0:00:00]} d6 {[%emt 0:00:05]} 2. c4 {[%emt 0:00:05]} e5 {[%emt 0:00:27]} 3. Nc3 {[%emt 0:00:48]} Nd7 {[%emt 0:01:44]} 4. Nf3 {[%emt 0:01:39]} g6 {[%emt 0:01:05]} 5. e4 {[%emt 0:01:19]} Bg7 {[%emt 0:01:27]} 6. Be2 {[%emt 0:00:15]} Ngf6 {[%emt 0:04:26]} 7. O-O {[%emt 0:01:00]} O-O {[%emt 0:00:12]} 8. Be3 {[%emt 0:02:00]} c6 {[%emt 0:07:54]} 9. h3 {[%emt 0:02:09]} Qe7 {[%emt 0:02:56]} 10. d5 {[%emt 0:09:10]} c5 {[%emt 0:04:15]} 11. Ne1 {[%emt 0:03:45]} Ne8 {[%emt 0:07:24]} 12. f4 {[%emt 0:21:10]} exf4 {[%emt 0:20:51]} 13. Bxf4 {[%emt 0:00:29]} Nef6 {[%emt 0:02:30]} 14. Nf3 {[%emt 0:14:04]} Nh5 {[%emt 0:16:32]} 15. Bh2 {[%emt 0:03:45]} Ne5 {[%emt 0:03:45]} 16. Nxe5 {[%emt 0:01:38]} Bxe5 {[%emt 0:00:07]} 17. Bxe5 {[%emt 0:00:10]} Qxe5 {[%emt 0:00:05]} 18. Bxh5 {[%emt 0:00:06]} gxh5 {[%emt 0:00:43]} 19. Qf3 {[%emt 0:01:23]} Bd7 {[%emt 0:08:45]} 20. Qf6 {[%emt 0:01:26]} Rae8 {[%emt 0:03:06]} 21. Rae1 {[%emt 0:05:00]} Qg3 {[%emt 0:01:59]} 22. Re2 {[%emt 0:05:10]} Qe5 {[%emt 0:04:02]} 23. Qxe5 {[%emt 0:01:51]} dxe5 {[%emt 0:03:29]} 24. Rf6 {[%emt 0:00:37]} Kg7 {[%emt 0:00:47]} 25. Ref2 {[%emt 0:00:26]} Re7 {[%emt 0:01:06]} 26. Ne2 {[%emt 0:03:09]} h4 {[%emt 0:00:52]} 27. Nc1 {[%emt 0:00:40]} b6 {[%emt 0:01:29]} 28. Nd3 {[%emt 0:00:40]} Bc8 {[%emt 0:01:22]} 29. a3 {[%emt 0:00:24]} Ba6 {[%emt 0:00:28]} 30. b3 {[%emt 0:00:13]} Ree8 {[%emt 0:00:35]} 31. R2f3 {[%emt 0:01:03]} Bb7 {[%emt 0:00:28]} 32. b4 {[%emt 0:01:38]} cxb4 {[%emt 0:00:03]} 33. axb4 {[%emt 0:00:41]} Ba6 {[%emt 0:00:54]} 34. b5 {[%emt 0:00:26]} Bb7 {[%emt 0:00:34]} 35. c5 {[%emt 0:00:09]} bxc5 {[%emt 0:00:20]} 36. Nxc5 {[%emt 0:00:09]} Bc8 {[%emt 0:00:10]} 37. Rc6 {[%emt 0:05:27]} 1-0

[Event "EYCC Open-U12 2019"]
[Site "Bratislava"]
[Date "2019.08.02"]
[Round "1.10"]
[White "Prazak, Daniel"]
[Black "Pingin, Artem"]
[Result "1/2-1/2"]
[ECO "A46"]
[WhiteElo "1586"]
[BlackElo "2155"]
[Annotator "NA"]
[PlyCount "144"]
[EventDate "2019.08.02"]
[EventType "swiss"]
[EventCountry "SVK"]
[SourceTitle "playchess.com"]
[Source "ChessBase"]
[SourceQuality "1"]
[TimeControl "40/5400+30:1800+30"]

1. d4 {[%emt 0:00:00]} Nf6 {[%emt 0:00:00]} 2. Nf3 {[%emt 0:00:42]} e6 {[%emt 0:00:06]} 3. Bf4 {[%emt 0:01:35]} d5 {[%emt 0:03:46]} 4. e3 {[%emt 0:03:26]} c5 {[%emt 0:00:31]} 5. c3 {[%emt 0:00:51]} Nc6 {[%emt 0:01:02]} 6. Nbd2 {[%emt 0:02:37]} Bd6 {[%emt 0:01:10]} 7. Bg3 {[%emt 0:01:23]} O-O {[%emt 0:02:58]} 8. Bd3 {[%emt 0:01:15]} b6 {[%emt 0:05:03]} 9. Qc2 {[%emt 0:04:04]} c4 {[%emt 0:10:59]} 10. Be2 {[%emt 0:02:51]} Bb7 {[%emt 0:01:55]} 11. O-O {[%emt 0:01:50]} Bxg3 {[%emt 0:04:13]} 12. hxg3 {[%emt 0:02:00]} b5 {[%emt 0:03:12]} 13. a3 {[%emt 0:07:16]} a5 {[%emt 0:04:55]} 14. b4 {[%emt 0:08:30]} Nd7 {[%emt 0:05:53]} 15. e4 {[%emt 0:06:32]} Nb6 {[%emt 0:03:36]} 16. Rfe1 {[%emt 0:08:04]} Ra7 {[%emt 0:02:04]} 17. exd5 {[%emt 0:06:14]} exd5 {[%emt 0:00:33]} 18. Nf1 {[%emt 0:03:14]} Bc8 {[%emt 0:02:42]} 19. Ne3 {[%emt 0:01:48]} Be6 {[%emt 0:00:53]} 20. Qd2 {[%emt 0:04:27]} Qf6 {[%emt 0:03:19]} 21. Ra2 {[%emt 0:00:47]} Rfa8 {[%emt 0:03:08]} 22. Rea1 {[%emt 0:01:07]} Na4 {[%emt 0:00:57]} 23. Bd1 {[%emt 0:02:52]} Nxc3 {[%emt 0:04:06]} 24. Qxc3 {[%emt 0:01:06]} axb4 {[%emt 0:00:36]} 25. Qb2 {[%emt 0:00:57]} b3 {[%emt 0:03:33]} 26. Bxb3 {[%emt 0:02:23]} cxb3 {[%emt 0:00:02]} 27. Qxb3 {[%emt 0:00:01]} Nxd4 {[%emt 0:00:18]} 28. Nxd4 {[%emt 0:00:33]} Qxd4 {[%emt 0:00:02]} 29. Qxb5 {[%emt 0:00:29]} Ra5 {[%emt 0:03:01]} 30. Qb7 {[%emt 0:05:50]} Qe5 {[%emt 0:02:10]} 31. Rd1 {[%emt 0:01:36]} h6 {[%emt 0:09:21]} 32. Rad2 {[%emt 0:02:33]} Rxa3 {[%emt 0:02:14]} 33. Nxd5 {[%emt 0:00:44]} Ra1 {[%emt 0:01:13]} 34. Ne3 {[%emt 0:01:41]} R8a3 {[%emt 0:01:55]} 35. Qf3 {[%emt 0:02:03]} Bb3 {[%emt 0:03:04]} 36. Rxa1 {[%emt 0:01:49]} Rxa1+ {[%emt 0:00:01]} 37. Kh2 {[%emt 0:00:03]} Qa5 {[%emt 0:01:18]} 38. Qe2 {[%emt 0:03:34]} Be6 {[%emt 0:00:38]} 39. Rb2 {[%emt 0:01:20]} Qe5 {[%emt 0:01:28]} 40. Rb5 {[%emt 0:00:00]} Qc3 {[%emt 0:00:00]} 41. Qc2 {[%emt 0:03:39]} Qxc2 {[%emt 0:05:02]} 42. Nxc2 {[%emt 0:00:18]} Ra2 {[%emt 0:02:14]} 43. Rc5 {[%emt 0:01:04]} Rb2 {[%emt 0:00:24]} 44. f3 {[%emt 0:00:37]} Kf8 {[%emt 0:03:36]} 45. Nd4 {[%emt 0:01:11]} Ke7 {[%emt 0:00:10]} 46. Nxe6 {[%emt 0:00:14]} Kxe6 {[%emt 0:00:04]} 47. g4 {[%emt 0:00:34]} g6 {[%emt 0:01:42]} 48. Ra5 {[%emt 0:00:23]} Kf6 {[%emt 0:00:03]} 49. Ra6+ {[%emt 0:00:27]} Kg7 {[%emt 0:00:05]} 50. Kg3 {[%emt 0:00:17]} Rb5 {[%emt 0:00:12]} 51. Rc6 {[%emt 0:00:47]} Rg5 {[%emt 0:00:14]} 52. Rc4 {[%emt 0:00:24]} h5 {[%emt 0:00:54]} 53. Ra4 {[%emt 0:00:20]} hxg4 {[%emt 0:00:07]} 54. Rxg4 {[%emt 0:00:05]} Ra5 {[%emt 0:00:10]} 55. Rb4 {[%emt 0:00:12]} g5 {[%emt 0:00:13]} 56. f4 {[%emt 0:00:49]} Ra3+ {[%emt 0:00:10]} 57. Kg4 {[%emt 0:00:09]} gxf4 {[%emt 0:00:17]} 58. Rxf4 {[%emt 0:00:17]} Kg6 {[%emt 0:00:04]} 59. Rf3 {[%emt 0:00:23]} Ra2 {[%emt 0:00:22]} 60. Kg3 {[%emt 0:00:13]} f5 {[%emt 0:00:05]} 61. Rb3 {[%emt 0:00:59]} Kg5 {[%emt 0:00:12]} 62. Kf3 {[%emt 0:00:58]} Ra1 {[%emt 0:00:14]} 63. g3 {[%emt 0:01:12]} Rf1+ {[%emt 0:00:04]} 64. Kg2 {[%emt 0:00:10]} Rc1 {[%emt 0:00:06]} 65. Rf3 {[%emt 0:00:13]} Rc2+ {[%emt 0:00:05]} 66. Rf2 {[%emt 0:00:03]} Rc3 {[%emt 0:00:16]} 67. Ra2 {[%emt 0:00:42]} Kg4 {[%emt 0:00:31]} 68. Ra4+ {[%emt 0:00:14]} Kg5 {[%emt 0:00:02]} 69. Rf4 {[%emt 0:00:21]} Rc2+ {[%emt 0:00:03]} 70. Rf2 {[%emt 0:00:08]} Rxf2+ {[%emt 0:00:02]} 71. Kxf2 {[%emt 0:00:06]} f4 {[%emt 0:00:02]} 72. gxf4+ {[%emt 0:00:06]} Kxf4 1/2-1/2

[Event "EYCC Open-U12 2019"]
[Site "Bratislava"]
[Date "2019.08.02"]
[Round "1.11"]
[White "Navumenka, Mikhei"]
[Black "Skreko, Igor"]
[Result "1-0"]
[ECO "B56"]
[WhiteElo "2196"]
[BlackElo "1688"]
[Annotator "NA"]
[PlyCount "103"]
[EventDate "2019.08.02"]
[EventType "swiss"]
[EventCountry "SVK"]
[SourceTitle "playchess.com"]
[Source "ChessBase"]
[SourceQuality "1"]
[TimeControl "40/5400+30:1800+30"]

1. e4 {[%emt 0:00:00]} c5 {[%emt 0:00:00]} 2. Nc3 {[%emt 0:00:00]} d6 {[%emt 0:00:00]} 3. Nge2 {[%emt 0:00:00]} Nc6 {[%emt 0:00:00]} 4. d4 {[%emt 0:00:44]} cxd4 {[%emt 0:00:21]} 5. Nxd4 {[%emt 0:00:02]} Nf6 {[%emt 0:00:09]} 6. g3 {[%emt 0:00:09]} a6 {[%emt 0:00:19]} 7. Bg2 {[%emt 0:00:06]} Qc7 {[%emt 0:00:30]} 8. O-O {[%emt 0:00:09]} e6 {[%emt 0:00:25]} 9. Re1 {[%emt 0:03:23]} Bd7 {[%emt 0:02:13]} 10. Nxc6 {[%emt 0:10:44]} Bxc6 {[%emt 0:01:42]} 11. Nd5 {[%emt 0:02:41]} Qd8 {[%emt 0:09:47]} 12. c4 {[%emt 0:11:27]} Be7 {[%emt 0:03:25]} 13. Nxe7 {[%emt 0:03:12]} Qxe7 {[%emt 0:00:16]} 14. Bd2 {[%emt 0:04:09]} O-O {[%emt 0:02:44]} 15. Bb4 {[%emt 0:00:22]} Rfd8 {[%emt 0:00:52]} 16. Qd2 {[%emt 0:10:00]} Qc7 {[%emt 0:06:48]} 17. Rad1 {[%emt 0:02:31]} Ne8 {[%emt 0:01:12]} 18. b3 {[%emt 0:01:30]} b6 {[%emt 0:05:41]} 19. Re3 {[%emt 0:01:50]} a5 {[%emt 0:02:59]} 20. Ba3 {[%emt 0:06:45]} Rd7 {[%emt 0:07:20]} 21. Rd3 {[%emt 0:01:23]} Rad8 {[%emt 0:00:17]} 22. Bb2 {[%emt 0:06:02]} Qb7 {[%emt 0:07:26]} 23. Qe3 {[%emt 0:01:30]} Rc8 {[%emt 0:11:08]} 24. a4 {[%emt 0:02:02]} Qc7 {[%emt 0:01:42]} 25. e5 {[%emt 0:05:48]} Bxg2 {[%emt 0:05:19]} 26. Kxg2 {[%emt 0:00:01]} Qc6+ {[%emt 0:01:38]} 27. Kg1 {[%emt 0:00:35]} Rcd8 {[%emt 0:02:51]} 28. exd6 {[%emt 0:04:58]} Rxd6 {[%emt 0:00:56]} 29. Rxd6 {[%emt 0:00:53]} Rxd6 {[%emt 0:00:16]} 30. Rxd6 {[%emt 0:00:45]} Nxd6 {[%emt 0:02:02]} 31. Qe5 {[%emt 0:01:28]} Ne8 {[%emt 0:04:18]} 32. Bd4 {[%emt 0:00:45]} Kf8 {[%emt 0:02:46]} 33. Qe3 {[%emt 0:02:36]} Nd6 {[%emt 0:01:55]} 34. Bxb6 {[%emt 0:00:28]} Nb7 {[%emt 0:00:12]} 35. Bd4 {[%emt 0:01:00]} f6 {[%emt 0:01:05]} 36. Bc3 {[%emt 0:02:03]} e5 {[%emt 0:02:11]} 37. Qd3 {[%emt 0:01:19]} g6 {[%emt 0:01:48]} 38. Bxa5 {[%emt 0:01:08]} Nxa5 {[%emt 0:00:44]} 39. Qd8+ {[%emt 0:00:10]} Kg7 {[%emt 0:00:41]} 40. Qxa5 {[%emt 0:00:00]} Qf3 {[%emt 0:00:00]} 41. Qa7+ {[%emt 0:00:31]} Kg8 {[%emt 0:01:12]} 42. Qe3 {[%emt 0:00:16]} Qd1+ {[%emt 0:00:20]} 43. Kg2 {[%emt 0:00:01]} Qc2 {[%emt 0:01:14]} 44. a5 {[%emt 0:00:57]} Qa2 {[%emt 0:00:27]} 45. Qc3 {[%emt 0:01:46]} Kf7 {[%emt 0:01:31]} 46. c5 {[%emt 0:00:09]} e4 {[%emt 0:01:43]} 47. Qc4+ {[%emt 0:01:22]} Kf8 {[%emt 0:00:43]} 48. Qxe4 {[%emt 0:01:07]} Qxa5 {[%emt 0:00:19]} 49. c6 {[%emt 0:00:59]} f5 {[%emt 0:02:23]} 50. Qe6 {[%emt 0:01:34]} Qc5 {[%emt 0:00:58]} 51. Qc4 {[%emt 0:00:25]} Qe5 {[%emt 0:01:02]} 52. c7 {[%emt 0:00:15]} 1-0

[Event "EYCC Open-U12 2019"]
[Site "Bratislava"]
[Date "2019.08.02"]
[Round "1.12"]
[White "Herwy, Jakub"]
[Black "Dudarev, Vladislav"]
[Result "1-0"]
[ECO "B20"]
[WhiteElo "1685"]
[BlackElo "2137"]
[Annotator "NA"]
[PlyCount "81"]
[EventDate "2019.08.02"]
[EventType "swiss"]
[EventCountry "SVK"]
[SourceTitle "playchess.com"]
[Source "ChessBase"]
[SourceQuality "1"]
[TimeControl "40/5400+30:1800+30"]

1. e4 {[%emt 0:00:00]} c5 {[%emt 0:00:00]} 2. c4 {[%emt 0:00:00]} Nc6 {[%emt 0:00:00]} 3. Nc3 {[%emt 0:00:00]} g6 {[%emt 0:00:24]} 4. g3 {[%emt 0:00:00]} Bg7 {[%emt 0:00:58]} 5. Bg2 {[%emt 0:00:40]} d6 {[%emt 0:01:27]} 6. Nge2 {[%emt 0:00:58]} Nf6 {[%emt 0:06:39]} 7. O-O {[%emt 0:00:14]} O-O {[%emt 0:00:30]} 8. a3 {[%emt 0:00:57]} Bg4 {[%emt 0:05:56]} 9. f3 {[%emt 0:01:12]} Bd7 {[%emt 0:03:17]} 10. Rb1 {[%emt 0:00:28]} Rb8 {[%emt 0:03:53]} 11. d3 {[%emt 0:03:01]} a6 {[%emt 0:05:13]} 12. Be3 {[%emt 0:00:38]} b5 {[%emt 0:01:41]} 13. cxb5 {[%emt 0:00:29]} axb5 {[%emt 0:00:09]} 14. b4 {[%emt 0:00:05]} cxb4 {[%emt 0:11:38]} 15. axb4 {[%emt 0:00:07]} Be6 {[%emt 0:01:38]} 16. Nf4 {[%emt 0:08:21]} Qd7 {[%emt 0:07:20]} 17. Qd2 {[%emt 0:10:40]} Rfc8 {[%emt 0:04:22]} 18. Nxe6 {[%emt 0:07:09]} Qxe6 {[%emt 0:01:39]} 19. d4 {[%emt 0:00:35]} Qd7 {[%emt 0:05:24]} 20. f4 {[%emt 0:04:41]} e6 {[%emt 0:07:43]} 21. h3 {[%emt 0:02:13]} d5 {[%emt 0:03:35]} 22. exd5 {[%emt 0:03:03]} exd5 {[%emt 0:02:59]} 23. f5 {[%emt 0:05:58]} Ne7 {[%emt 0:15:28]} 24. fxg6 {[%emt 0:01:31]} hxg6 {[%emt 0:00:25]} 25. Bf4 {[%emt 0:04:55]} Rb6 {[%emt 0:03:21]} 26. Be5 {[%emt 0:02:49]} Ne4 {[%emt 0:04:18]} 27. Bxe4 {[%emt 0:04:56]} dxe4 {[%emt 0:00:19]} 28. Bxg7 {[%emt 0:00:10]} Kxg7 {[%emt 0:02:17]} 29. Nxe4 {[%emt 0:01:23]} Qxh3 {[%emt 0:01:03]} 30. Rxf7+ {[%emt 0:00:06]} Kg8 {[%emt 0:00:48]} 31. Rxe7 {[%emt 0:00:11]} Rf8 {[%emt 0:00:32]} 32. Qa2+ {[%emt 0:00:07]} Kh8 {[%emt 0:00:29]} 33. Qh2 {[%emt 0:00:04]} Qxh2+ {[%emt 0:00:29]} 34. Kxh2 {[%emt 0:00:06]} Rc6 {[%emt 0:00:13]} 35. Rh1 {[%emt 0:00:12]} Kg8 {[%emt 0:00:22]} 36. Kh3 {[%emt 0:00:50]} Rc4 {[%emt 0:00:54]} 37. Rd7 {[%emt 0:00:05]} Rf5 {[%emt 0:00:35]} 38. Ra1 {[%emt 0:00:48]} Rf8 {[%emt 0:00:23]} 39. Raa7 {[%emt 0:00:07]} Rf1 {[%emt 0:00:36]} 40. Ra8+ {[%emt 0:00:00]} Rf8 {[%emt 0:00:00]} 41. Nf6+ {[%emt 0:00:13]} 1-0

[Event "EYCC Open-U12 2019"]
[Site "Bratislava"]
[Date "2019.08.02"]
[Round "1.13"]
[White "Vergara Anton, Diego"]
[Black "Jetzl, Julian"]
[Result "1-0"]
[ECO "E62"]
[WhiteElo "2183"]
[BlackElo "1719"]
[Annotator "NA"]
[PlyCount "67"]
[EventDate "2019.08.02"]
[EventType "swiss"]
[EventCountry "SVK"]
[SourceTitle "playchess.com"]
[Source "ChessBase"]
[SourceQuality "1"]
[TimeControl "40/5400+30:1800+30"]

1. d4 {[%emt 0:00:00]} Nf6 {[%emt 0:00:12]} 2. Nf3 {[%emt 0:00:12]} g6 {[%emt 0:00:14]} 3. g3 {[%emt 0:00:13]} Bg7 {[%emt 0:00:11]} 4. Bg2 {[%emt 0:00:09]} O-O {[%emt 0:00:09]} 5. O-O {[%emt 0:00:36]} d6 {[%emt 0:00:09]} 6. c4 {[%emt 0:01:43]} Nc6 {[%emt 0:01:58]} 7. Nc3 {[%emt 0:02:35]} Bf5 {[%emt 0:00:42]} 8. b3 {[%emt 0:09:11]} Ne4 {[%emt 0:01:22]} 9. Nd5 {[%emt 0:05:19]} Qd7 {[%emt 0:00:31]} 10. Bb2 {[%emt 0:01:16]} Rfe8 {[%emt 0:05:47]} 11. Nh4 {[%emt 0:03:26]} e6 {[%emt 0:05:35]} 12. Ne3 {[%emt 0:03:13]} g5 {[%emt 0:02:39]} 13. Nhxf5 {[%emt 0:00:52]} exf5 {[%emt 0:00:17]} 14. Nd5 {[%emt 0:05:24]} Ne7 {[%emt 0:03:32]} 15. Nc3 {[%emt 0:05:12]} Ng6 {[%emt 0:05:12]} 16. Qd3 {[%emt 0:03:48]} Qe7 {[%emt 0:01:50]} 17. Nd5 {[%emt 0:03:36]} Qd7 {[%emt 0:01:06]} 18. Ne3 {[%emt 0:03:42]} Qe6 19. d5 {[%emt 0:11:50]} Qd7 {[%emt 0:13:36]} 20. Bxg7 {[%emt 0:00:19]} Kxg7 {[%emt 0:00:10]} 21. f3 {[%emt 0:02:23]} Nc5 {[%emt 0:02:40]} 22. Nxf5+ {[%emt 0:04:46]} Kg8 {[%emt 0:00:18]} 23. Qc2 {[%emt 0:01:01]} Re5 {[%emt 0:00:51]} 24. e4 {[%emt 0:00:34]} h5 {[%emt 0:21:09]} 25. f4 {[%emt 0:01:10]} gxf4 {[%emt 0:05:01]} 26. gxf4 {[%emt 0:00:01]} Ree8 {[%emt 0:01:49]} 27. Qc3 {[%emt 0:01:11]} f6 {[%emt 0:01:53]} 28. Qxf6 {[%emt 0:00:30]} Qh7 {[%emt 0:00:54]} 29. Rae1 {[%emt 0:03:17]} h4 {[%emt 0:03:29]} 30. Re3 {[%emt 0:01:01]} Rf8 {[%emt 0:06:25]} 31. Qg5 {[%emt 0:00:10]} Kh8 {[%emt 0:00:16]} 32. Rh3 {[%emt 0:00:31]} Rg8 {[%emt 0:12:58]} 33. Qf6+ {[%emt 0:00:23]} Rg7 {[%emt 0:01:03]} 34. Qxg7+ {[%emt 0:00:15]} 1-0

[Event "EYCC Open-U12 2019"]
[Site "Bratislava"]
[Date "2019.08.02"]
[Round "1.14"]
[White "Bunic, Emanuel"]
[Black "Celik, Hasan Huseyin"]
[Result "0-1"]
[ECO "E62"]
[WhiteElo "1718"]
[BlackElo "1903"]
[Annotator "NA"]
[PlyCount "58"]
[EventDate "2019.08.02"]
[EventType "swiss"]
[EventCountry "SVK"]
[SourceTitle "playchess.com"]
[Source "ChessBase"]
[SourceQuality "1"]
[TimeControl "40/5400+30:1800+30"]

1. d4 {[%emt 0:00:00]} Nf6 {[%emt 0:00:00]} 2. c4 {[%emt 0:00:00]} g6 {[%emt 0:00:00]} 3. g3 {[%emt 0:00:07]} Bg7 {[%emt 0:00:00]} 4. Bg2 {[%emt 0:00:15]} O-O {[%emt 0:00:00]} 5. Nc3 {[%emt 0:00:06]} d6 {[%emt 0:00:03]} 6. Nf3 {[%emt 0:00:23]} c6 {[%emt 0:00:07]} 7. O-O {[%emt 0:00:08]} Qa5 {[%emt 0:00:03]} 8. e4 {[%emt 0:00:18]} e5 {[%emt 0:00:01]} 9. h3 {[%emt 0:00:18]} Nbd7 {[%emt 0:00:09]} 10. Re1 {[%emt 0:00:28]} exd4 {[%emt 0:00:07]} 11. Nxd4 {[%emt 0:00:08]} Ne5 {[%emt 0:00:02]} 12. Bf1 {[%emt 0:00:19]} Re8 {[%emt 0:01:17]} 13. Be3 {[%emt 0:00:23]} Be6 {[%emt 0:01:20]} 14. Nxe6 {[%emt 0:00:18]} Rxe6 {[%emt 0:00:02]} 15. Kg2 {[%emt 0:00:33]} Rae8 {[%emt 0:00:22]} 16. a3 {[%emt 0:00:45]} Ned7 {[%emt 0:03:17]} 17. Bd3 {[%emt 0:00:49]} Qc7 {[%emt 0:02:50]} 18. b4 {[%emt 0:01:27]} Ng4 {[%emt 0:04:47]} 19. Bd2 {[%emt 0:08:57]} Nge5 {[%emt 0:00:12]} 20. Bf1 {[%emt 0:00:20]} Nf6 {[%emt 0:01:18]} 21. Qc2 {[%emt 0:00:58]} d5 {[%emt 0:03:51]} 22. exd5 {[%emt 0:06:08]} cxd5 {[%emt 0:00:10]} 23. cxd5 {[%emt 0:00:36]} Nxd5 {[%emt 0:00:17]} 24. Qb3 {[%emt 0:00:48]} Nxc3 {[%emt 0:00:27]} 25. Bxc3 {[%emt 0:00:02]} Qc6+ {[%emt 0:00:08]} 26. f3 {[%emt 0:08:49]} Qxf3+ {[%emt 0:00:13]} 27. Kh2 {[%emt 0:08:55]} Qf2+ {[%emt 0:00:11]} 28. Bg2 {[%emt 0:00:41]} Nf3+ {[%emt 0:00:06]} 29. Kh1 {[%emt 0:01:12]} Rxe1+ {[%emt 0:00:03]} 0-1

[Event "EYCC Open-U12 2019"]
[Site "Bratislava"]
[Date "2019.08.02"]
[Round "1.15"]
[White "Macias Pino, Diego"]
[Black "Ivanov, Svetlen"]
[Result "1-0"]
[ECO "B45"]
[WhiteElo "2150"]
[BlackElo "1717"]
[Annotator "NA"]
[PlyCount "43"]
[EventDate "2019.08.02"]
[EventType "swiss"]
[EventCountry "SVK"]
[SourceTitle "playchess.com"]
[Source "ChessBase"]
[SourceQuality "1"]
[TimeControl "40/5400+30:1800+30"]

1. e4 {[%emt 0:00:00]} c5 {[%emt 0:00:00]} 2. Nc3 {[%emt 0:00:00]} e6 {[%emt 0:00:30]} 3. Nf3 {[%emt 0:00:00]} Nc6 {[%emt 0:00:18]} 4. d4 {[%emt 0:00:08]} cxd4 {[%emt 0:00:10]} 5. Nxd4 {[%emt 0:00:05]} Nf6 {[%emt 0:00:19]} 6. Be3 {[%emt 0:01:41]} Bb4 {[%emt 0:00:24]} 7. Ndb5 {[%emt 0:04:32]} Nxe4 {[%emt 0:09:50]} 8. Qg4 {[%emt 0:04:09]} Nxc3 {[%emt 0:09:06]} 9. bxc3 {[%emt 0:00:14]} Qf6 {[%emt 0:00:14]} 10. O-O-O {[%emt 0:17:15]} Ba5 {[%emt 0:05:04]} 11. Nd6+ {[%emt 0:17:38]} Kf8 {[%emt 0:00:12]} 12. Bc5 {[%emt 0:02:01]} Kg8 {[%emt 0:03:04]} 13. Ne8 Qg6 {[%emt 0:02:35]} 14. Qh4 {[%emt 0:11:21]} Bd8 {[%emt 0:15:47]} 15. Qa4 {[%emt 0:01:34]} Qg5+ {[%emt 0:00:48]} 16. Be3 {[%emt 0:00:06]} Qe7 {[%emt 0:04:19]} 17. Nd6 {[%emt 0:05:07]} Bc7 {[%emt 0:01:09]} 18. Nb5 {[%emt 0:03:32]} d5 {[%emt 0:02:09]} 19. c4 {[%emt 0:02:39]} d4 {[%emt 0:04:20]} 20. Nxc7 {[%emt 0:02:35]} Qxc7 {[%emt 0:02:39]} 21. Bxd4 {[%emt 0:01:03]} Nxd4 {[%emt 0:01:20]} 22. Qe8# {[%emt 0:00:10]} 1-0

[Event "EYCC Open-U12 2019"]
[Site "Bratislava"]
[Date "2019.08.02"]
[Round "1.16"]
[White "Andreev, Konstantin"]
[Black "Kanov, Nikola"]
[Result "1-0"]
[ECO "A43"]
[WhiteElo "2271"]
[BlackElo "1908"]
[Annotator "NA"]
[PlyCount "59"]
[EventDate "2019.08.02"]
[EventType "swiss"]
[EventCountry "SVK"]
[SourceTitle "playchess.com"]
[Source "ChessBase"]
[SourceQuality "1"]
[TimeControl "40/5400+30:1800+30"]

1. d4 {[%emt 0:00:00]} Nf6 {[%emt 0:00:00]} 2. Nf3 {[%emt 0:00:00]} c5 {[%emt 0:00:00]} 3. d5 {[%emt 0:00:00]} e6 {[%emt 0:00:52]} 4. Nc3 {[%emt 0:00:12]} d6 {[%emt 0:01:18]} 5. e4 {[%emt 0:01:01]} exd5 {[%emt 0:01:04]} 6. exd5 {[%emt 0:00:31]} Bg4 {[%emt 0:02:18]} 7. h3 {[%emt 0:07:56]} Bxf3 {[%emt 0:00:33]} 8. Qxf3 {[%emt 0:01:34]} Be7 {[%emt 0:02:55]} 9. Qg3 {[%emt 0:03:22]} Kf8 {[%emt 0:02:11]} 10. Be2 {[%emt 0:02:55]} Na6 {[%emt 0:03:20]} 11. Bxa6 {[%emt 0:04:36]} bxa6 {[%emt 0:00:32]} 12. O-O {[%emt 0:01:11]} Qb6 {[%emt 0:04:12]} 13. b3 {[%emt 0:01:40]} h5 {[%emt 0:00:44]} 14. Bb2 {[%emt 0:02:09]} h4 {[%emt 0:00:22]} 15. Qf3 {[%emt 0:02:35]} Qb7 {[%emt 0:03:56]} 16. Rad1 {[%emt 0:01:38]} Rh6 {[%emt 0:02:17]} 17. Rfe1 {[%emt 0:03:38]} Rg6 {[%emt 0:08:10]} 18. Ne4 {[%emt 0:02:03]} Ng8 {[%emt 0:04:52]} 19. c4 {[%emt 0:01:19]} Qd7 {[%emt 0:01:47]} 20. Nxc5 {[%emt 0:02:01]} dxc5 {[%emt 0:03:28]} 21. d6 {[%emt 0:00:07]} Qc8 {[%emt 0:00:18]} 22. Rxe7 {[%emt 0:05:43]} Nh6 {[%emt 0:26:06]} 23. d7 {[%emt 0:03:31]} Qc6 {[%emt 0:00:30]} 24. Qxc6 {[%emt 0:00:42]} Rxc6 {[%emt 0:00:01]} 25. Re5 {[%emt 0:00:56]} Rd8 {[%emt 0:04:58]} 26. Ba3 {[%emt 0:00:13]} f6 {[%emt 0:01:51]} 27. Bxc5+ {[%emt 0:00:19]} Kf7 {[%emt 0:00:10]} 28. Re7+ {[%emt 0:00:16]} Kg6 {[%emt 0:00:11]} 29. Re8 {[%emt 0:00:10]} Nf7 {[%emt 0:00:05]} 30. Be7 {[%emt 0:00:18]} 1-0